[Event "10th Iberoamericano-ch 2024"]
[Site "Linares"]
[Date "2024.09.27"]
[Round "4.38"]
[White "Bendayan Claros, Aaron"]
[Black "Zapata Campos, Lidia Karen"]
[Result "1-0"]
[ECO "D37"]
[WhiteElo "2200"]
[BlackElo "2029"]
[Annotator "RC"]
[PlyCount "63"]
[EventDate "2024.09.25"]
[EventType "swiss"]
[EventCountry "ESP"]
[SourceTitle "playchess.com"]
[Source "ChessBase"]
[SourceQuality "1"]
[TimeControl "5400+30"]

1. d4 {[%emt 0:00:47]} Nf6 {[%emt 0:03:31]} 2. c4 {[%emt 0:00:15]} e6 {[%emt 0:00:06]} 3. Nc3 {[%emt 0:00:15]} d5 {[%emt 0:00:12]} 4. Nf3 {[%emt 0:00:16]} Nbd7 {[%emt 0:00:15]} 5. Qc2 {[%emt 0:01:22]} c6 {[%emt 0:00:21]} 6. e4 {[%emt 0:00:21]} Bb4 {[%emt 0:05:48]} 7. e5 {[%emt 0:14:19]} Ne4 {[%emt 0:00:39]} 8. cxd5 {[%emt 0:16:36]} exd5 {[%emt 0:02:27]} 9. Bd3 {[%emt 0:00:19]} Qa5 {[%emt 0:08:52]} 10. Bxe4 {[%emt 0:11:25]} dxe4 {[%emt 0:00:56]} 11. Ng5 {[%emt 0:00:31]} O-O {[%emt 0:40:41]} 12. O-O {[%emt 0:02:07]} Bxc3 {[%emt 0:17:19]} 13. bxc3 {[%emt 0:00:23]} f6 {[%emt 0:04:53]} 14. Qb3+ {[%emt 0:05:41]} Qd5 {[%emt 0:00:14]} 15. Ne6 {[%emt 0:00:11]} fxe5 {[%emt 0:04:01]} 16. Nxf8 {[%emt 0:01:11]} Kxf8 {[%emt 0:00:12]} 17. f3 {[%emt 0:01:14]} e3 {[%emt 0:06:38]} 18. Bxe3 {[%emt 0:00:53]} exd4 {[%emt 0:00:09]} 19. Bxd4 {[%emt 0:01:37]} Qxb3 {[%emt 0:01:52]} 20. axb3 {[%emt 0:00:08]} c5 {[%emt 0:00:08]} 21. Bf2 {[%emt 0:00:16]} b6 {[%emt 0:00:11]} 22. b4 {[%emt 0:00:54]} cxb4 {[%emt 0:01:23]} 23. cxb4 {[%emt 0:00:07]} a5 {[%emt 0:00:30]} 24. bxa5 {[%emt 0:00:16]} bxa5 {[%emt 0:00:05]} 25. Ra4 {[%emt 0:00:13]} Ne5 {[%emt 0:00:39]} 26. Rfa1 {[%emt 0:03:15]} Nc6 {[%emt 0:00:19]} 27. Bb6 {[%emt 0:00:49]} Rb8 28. Bxa5 {[%emt 0:00:55]} Rb2 {[%emt 0:01:23]} 29. Bc3 {[%emt 0:00:12]} Rb3 {[%emt 0:00:35]} 30. Rf4+ {[%emt 0:01:29]} Kg8 {[%emt 0:00:40]} 31. Ra8 {[%emt 0:00:08]} Ne7 {[%emt 0:00:05]} 32. Rc4 {[%emt 0:00:07]} 1-0

[Event "10th Iberoamericano-ch 2024"]
[Site "Linares"]
[Date "2024.09.27"]
[Round "4.39"]
[White "Diaz Mino, Daniel"]
[Black "Guillo Longares, Cecilia"]
[Result "1-0"]
[ECO "B31"]
[WhiteElo "2130"]
[BlackElo "2036"]
[Annotator "RC"]
[PlyCount "65"]
[EventDate "2024.09.25"]
[EventType "swiss"]
[EventCountry "ESP"]
[SourceTitle "playchess.com"]
[Source "ChessBase"]
[SourceQuality "1"]
[TimeControl "5400+30"]

1. e4 {[%emt 0:01:09]} c5 {[%emt 0:00:10]} 2. Nf3 {[%emt 0:00:11]} Nc6 {[%emt 0:00:09]} 3. Bb5 {[%emt 0:00:08]} g6 {[%emt 0:00:07]} 4. Bxc6 {[%emt 0:00:08]} dxc6 {[%emt 0:00:05]} 5. d3 {[%emt 0:00:06]} Bg7 {[%emt 0:00:09]} 6. h3 {[%emt 0:00:05]} Nf6 {[%emt 0:00:09]} 7. Nc3 {[%emt 0:00:13]} Nd7 {[%emt 0:00:12]} 8. Be3 {[%emt 0:00:29]} e5 {[%emt 0:00:14]} 9. Qd2 {[%emt 0:00:07]} h6 {[%emt 0:00:06]} 10. O-O {[%emt 0:00:21]} b6 {[%emt 0:00:06]} 11. Nh2 {[%emt 0:00:07]} Nf8 {[%emt 0:00:11]} 12. f4 {[%emt 0:00:06]} exf4 {[%emt 0:00:05]} 13. Bxf4 {[%emt 0:00:05]} Ne6 {[%emt 0:00:05]} 14. Be3 {[%emt 0:00:05]} Nd4 {[%emt 0:00:14]} 15. Rae1 {[%emt 0:00:06]} Be6 {[%emt 0:00:07]} 16. e5 {[%emt 0:00:06]} Nf5 {[%emt 0:00:11]} 17. Bf2 {[%emt 0:00:05]} Qc7 {[%emt 0:00:44]} 18. Nf3 {[%emt 0:00:08]} O-O-O {[%emt 0:00:24]} 19. a3 {[%emt 0:00:05]} Bd5 {[%emt 0:03:54]} 20. Ne4 {[%emt 0:18:40]} Bxe5 {[%emt 0:20:52]} 21. Nxe5 {[%emt 0:13:27]} Qxe5 {[%emt 0:00:35]} 22. Nxc5 {[%emt 0:00:09]} Qxb2 {[%emt 0:15:48]} 23. Na4 {[%emt 0:18:13]} Qf6 {[%emt 0:21:41]} 24. c4 {[%emt 0:13:05]} Bxc4 {[%emt 0:12:35]} 25. Bxb6 {[%emt 0:00:11]} Bb5 {[%emt 0:13:53]} 26. Bxa7 {[%emt 0:01:14]} Bxa4 {[%emt 0:01:04]} 27. Qf4 {[%emt 0:00:39]} Rd4 {[%emt 0:03:31]} 28. Qb8+ {[%emt 0:19:20]} Kd7 {[%emt 0:00:06]} 29. Qb7+ {[%emt 0:00:05]} Kd6 {[%emt 0:00:19]} 30. Bb6 {[%emt 0:00:23]} Rxd3 {[%emt 0:04:08]} 31. Qc7+ {[%emt 0:00:31]} Kd5 {[%emt 0:00:09]} 32. Qd7+ {[%emt 0:00:26]} Qd6 {[%emt 0:01:54]} 33. Qxf7+ {[%emt 0:00:13]} 1-0

[Event "10th Iberoamericano-ch 2024"]
[Site "Linares"]
[Date "2024.09.27"]
[Round "4.40"]
[White "Santos, Jose Miguel Sereno"]
[Black "Donate Moreno, Silvia"]
[Result "0-1"]
[ECO "C02"]
[WhiteElo "1894"]
[BlackElo "2126"]
[Annotator "RC"]
[PlyCount "90"]
[EventDate "2024.09.25"]
[EventType "swiss"]
[EventCountry "ESP"]
[SourceTitle "playchess.com"]
[Source "ChessBase"]
[SourceQuality "1"]
[TimeControl "5400+30"]

1. e4 {[%emt 0:00:03]} e6 {[%emt 0:00:08]} 2. d4 {[%emt 0:00:25]} d5 {[%emt 0:00:09]} 3. e5 {[%emt 0:00:08]} c5 {[%emt 0:00:13]} 4. c3 {[%emt 0:00:07]} Nc6 {[%emt 0:00:06]} 5. Nf3 {[%emt 0:00:07]} Bd7 {[%emt 0:00:07]} 6. Be2 {[%emt 0:00:11]} cxd4 {[%emt 0:00:54]} 7. cxd4 {[%emt 0:00:12]} Nge7 {[%emt 0:01:52]} 8. Nc3 {[%emt 0:00:23]} Nf5 {[%emt 0:00:41]} 9. a3 {[%emt 0:13:47]} Rc8 {[%emt 0:13:56]} 10. h4 {[%emt 0:00:30]} Be7 {[%emt 0:03:11]} 11. h5 {[%emt 0:05:24]} a6 {[%emt 0:06:23]} 12. Na4 {[%emt 0:34:35]} b5 13. Nc3 {[%emt 0:00:30]} Qb6 {[%emt 0:01:13]} 14. Kf1 {[%emt 0:00:30]} Qa7 {[%emt 0:03:37]} 15. Be3 {[%emt 0:06:34]} f6 {[%emt 0:04:48]} 16. exf6 {[%emt 0:00:30]} Bxf6 {[%emt 0:01:38]} 17. g4 {[%emt 0:00:58]} Nxe3+ {[%emt 0:01:51]} 18. fxe3 {[%emt 0:01:01]} O-O {[%emt 0:00:30]} 19. Kg2 {[%emt 0:00:30]} Na5 {[%emt 0:13:56]} 20. Qd3 {[%emt 0:11:45]} Be8 {[%emt 0:04:06]} 21. Rac1 {[%emt 0:00:30]} Nc4 {[%emt 0:00:30]} 22. b3 {[%emt 0:00:30]} Nd6 {[%emt 0:02:09]} 23. Rhf1 {[%emt 0:06:24]} Bc6 {[%emt 0:00:30]} 24. g5 {[%emt 0:00:30]} Be7 {[%emt 0:00:30]} 25. g6 {[%emt 0:00:30]} Bf6 {[%emt 0:00:30]} 26. gxh7+ {[%emt 0:00:30]} Kh8 {[%emt 0:00:30]} 27. Nd1 {[%emt 0:00:30]} Nf5 {[%emt 0:00:30]} 28. Nf2 {[%emt 0:00:30]} Qb8 {[%emt 0:19:08]} 29. Nh1 {[%emt 0:06:06]} Qd6 {[%emt 0:00:30]} 30. b4 {[%emt 0:01:09]} Kxh7 {[%emt 0:03:37]} 31. Kf2 {[%emt 0:00:30]} Kh8 {[%emt 0:00:30]} 32. Ke1 {[%emt 0:01:07]} Qe7 {[%emt 0:03:12]} 33. Kd2 {[%emt 0:03:22]} Nd6 34. Nf2 {[%emt 0:02:15]} Nc4+ {[%emt 0:01:59]} 35. Kc2 {[%emt 0:00:30]} a5 {[%emt 0:00:26]} 36. Kb3 {[%emt 0:00:13]} e5 {[%emt 0:02:23]} 37. dxe5 {[%emt 0:00:09]} Bxe5 {[%emt 0:00:47]} 38. Ng4 {[%emt 0:02:50]} Bb2 {[%emt 0:03:07]} 39. Rb1 {[%emt 0:00:30]} Bxa3 {[%emt 0:00:30]} 40. Ka2 {[%emt 0:00:44]} Bxb4 {[%emt 0:02:32]} 41. h6 {[%emt 0:00:30]} g5 {[%emt 0:02:32]} 42. Qg6 {[%emt 0:01:44]} Bc3 {[%emt 0:00:21]} 43. Bxc4 Be8 {[%emt 0:04:14]} 44. Qxg5 {[%emt 0:01:08]} Qe4 {[%emt 0:01:34]} 45. Bb3 a4 0-1